[Event "Betsys MČR v online bleskovém šachu 2021"]
[Site "Chess.com"]
[Date "2021.04.17"]
[Round "6"]
[White "Dvacetsekund"]
[Black "RadosC"]
[Result "1-0"]
[WhiteElo "2204"]
[BlackElo "2490"]
[TimeControl "180+1"]
[EndTime "9:58:37 PDT"]
[Termination "Uživatel Dvacetsekund zvítězil na čas"]

1. e4 {[%clk 0:03:00.9]} 1... c5 {[%clk 0:02:59.6]} 2. Nf3 {[%clk 0:03:00.3]}
2... Nc6 {[%clk 0:03:00.1]} 3. Nc3 {[%clk 0:02:59.5]} 3... e5 {[%clk 0:02:59.1]}
4. Bc4 {[%clk 0:02:58.8]} 4... Be7 {[%clk 0:02:59.1]} 5. d3 {[%clk 0:02:58.9]}
5... d6 {[%clk 0:02:54.1]} 6. Nd2 {[%clk 0:02:59.4]} 6... Nf6 {[%clk 0:02:53]}
7. Nf1 {[%clk 0:02:59.4]} 7... Nd7 {[%clk 0:02:48.6]} 8. Ne3 {[%clk 0:02:58.6]}
8... Nb6 {[%clk 0:02:48.5]} 9. O-O {[%clk 0:02:57.6]} 9... O-O {[%clk
0:02:47.9]} 10. a4 {[%clk 0:02:56.7]} 10... Bg5 {[%clk 0:02:45.3]} 11. a5 {[%clk
0:02:27.4]} 11... Bxe3 {[%clk 0:02:33.2]} 12. axb6 {[%clk 0:01:41.8]} 12... Bxc1
{[%clk 0:02:29.3]} 13. Qxc1 {[%clk 0:01:39.4]} 13... Qxb6 {[%clk 0:02:27.5]} 14.
Nd5 {[%clk 0:01:36.5]} 14... Qd8 {[%clk 0:02:27.2]} 15. c3 {[%clk 0:01:35.1]}
15... Be6 {[%clk 0:02:26.5]} 16. f4 {[%clk 0:01:34.2]} 16... a6 {[%clk
0:02:07.4]} 17. f5 {[%clk 0:01:28.4]} 17... Bxd5 {[%clk 0:02:05.5]} 18. Bxd5
{[%clk 0:01:27.6]} 18... Qf6 {[%clk 0:02:01.6]} 19. Bxc6 {[%clk 0:01:22]} 19...
bxc6 {[%clk 0:02:01]} 20. c4 {[%clk 0:01:20.7]} 20... Rfb8 {[%clk 0:01:59.4]}
21. Qc3 {[%clk 0:01:20.1]} 21... Rb4 {[%clk 0:01:57]} 22. Rf2 {[%clk 0:01:06.1]}
22... a5 {[%clk 0:01:54.9]} 23. b3 {[%clk 0:00:57.4]} 23... h6 {[%clk
0:01:53.8]} 24. Rfa2 {[%clk 0:00:56.7]} 24... Rab8 {[%clk 0:01:52.5]} 25. Rb1
{[%clk 0:00:46.4]} 25... a4 {[%clk 0:01:46.9]} 26. Rab2 {[%clk 0:00:44.8]} 26...
Qg5 {[%clk 0:01:10.5]} 27. bxa4 {[%clk 0:00:44.3]} 27... Qe3+ {[%clk 0:01:09.8]}
28. Kf1 {[%clk 0:00:41.1]} 28... Rxb2 {[%clk 0:00:56.1]} 29. Rxb2 {[%clk
0:00:42]} 29... Rxb2 {[%clk 0:00:54.7]} 30. Qxb2 {[%clk 0:00:42.7]} 30... Qxd3+
{[%clk 0:00:54.8]} 31. Qe2 {[%clk 0:00:34.3]} 31... Qb1+ {[%clk 0:00:51.3]} 32.
Kf2 {[%clk 0:00:31.1]} 32... Qa1 {[%clk 0:00:47.5]} 33. f6 {[%clk 0:00:22.7]}
33... Qxa4 {[%clk 0:00:31.7]} 34. Qg4 {[%clk 0:00:12.7]} 34... Qc2+ {[%clk
0:00:28]} 35. Kf1 {[%clk 0:00:10.3]} 35... Qd3+ {[%clk 0:00:24.6]} 36. Kf2
{[%clk 0:00:08.8]} 36... Qd2+ {[%clk 0:00:22.1]} 37. Kf1 {[%clk 0:00:08]} 37...
Qg5 {[%clk 0:00:19.1]} 38. Qc8+ {[%clk 0:00:06.9]} 38... Kh7 {[%clk 0:00:19.4]}
39. fxg7 {[%clk 0:00:07]} 39... Kxg7 {[%clk 0:00:15.5]} 40. Qxc6 {[%clk
0:00:06.4]} 40... Qc1+ {[%clk 0:00:13.9]} 41. Kf2 {[%clk 0:00:05.9]} 41... Qc2+
{[%clk 0:00:14.1]} 42. Kf3 {[%clk 0:00:05.7]} 42... Qd3+ {[%clk 0:00:13.4]} 43.
Kf2 {[%clk 0:00:06]} 43... Qxc4 {[%clk 0:00:13.2]} 44. Qxd6 {[%clk 0:00:06]}
44... Qxe4 {[%clk 0:00:13.1]} 45. Qxc5 {[%clk 0:00:05.4]} 45... Qf4+ {[%clk
0:00:12.7]} 46. Ke2 {[%clk 0:00:04.6]} 46... e4 {[%clk 0:00:09.6]} 47. Qd4+
{[%clk 0:00:03.9]} 47... Kg6 {[%clk 0:00:09.2]} 48. Qb6+ {[%clk 0:00:03.6]}
48... Qf6 {[%clk 0:00:08.2]} 49. Qe3 {[%clk 0:00:02.4]} 49... Qb2+ {[%clk
0:00:07.7]} 50. Kf1 {[%clk 0:00:02.4]} 50... Qb1+ {[%clk 0:00:07.5]} 51. Kf2
{[%clk 0:00:03]} 51... Qc2+ {[%clk 0:00:07.7]} 52. Kg3 {[%clk 0:00:03.3]} 52...
Qc4 {[%clk 0:00:05.6]} 53. Kf4 {[%clk 0:00:03.4]} 53... f5 {[%clk 0:00:05]} 54.
Qg3+ {[%clk 0:00:03.5]} 54... Kf6 {[%clk 0:00:04.9]} 55. Qh4+ {[%clk 0:00:03.8]}
55... Kg6 {[%clk 0:00:04.5]} 56. Qg3+ {[%clk 0:00:04]} 56... Kf7 {[%clk
0:00:01.7]} 57. Kxf5 {[%clk 0:00:04.1]} 1-0

[Event "Betsys MČR v online bleskovém šachu 2021"]
[Site "Chess.com"]
[Date "2021.04.17"]
[Round "6"]
[White "kol340"]
[Black "Michelangelo111"]
[Result "0-1"]
[WhiteElo "1825"]
[BlackElo "2127"]
[TimeControl "180+1"]
[EndTime "9:58:37 PDT"]
[Termination "Uživatel Michelangelo111 zvítězil matem"]

1. d4 {[%clk 0:02:57.1]} 1... Nf6 {[%clk 0:02:59.4]} 2. Nf3 {[%clk 0:02:56.4]}
2... e6 {[%clk 0:02:59]} 3. Bf4 {[%clk 0:02:55.8]} 3... b6 {[%clk 0:02:58.2]} 4.
e3 {[%clk 0:02:55.3]} 4... Bb7 {[%clk 0:02:57.4]} 5. c4 {[%clk 0:02:47.5]} 5...
Bb4+ {[%clk 0:02:55.4]} 6. Nbd2 {[%clk 0:02:46.7]} 6... O-O {[%clk 0:02:54]} 7.
Bd3 {[%clk 0:02:46.5]} 7... Ne4 {[%clk 0:02:49.2]} 8. a3 {[%clk 0:02:42.8]} 8...
Bxd2+ {[%clk 0:02:44.8]} 9. Nxd2 {[%clk 0:02:41.4]} 9... f5 {[%clk 0:02:39.4]}
10. f3 {[%clk 0:02:35.7]} 10... Nxd2 {[%clk 0:02:17.3]} 11. Qxd2 {[%clk
0:02:33.4]} 11... d6 {[%clk 0:02:16.2]} 12. b4 {[%clk 0:02:29.3]} 12... Nd7
{[%clk 0:02:13.7]} 13. O-O {[%clk 0:02:12.8]} 13... Qe7 {[%clk 0:02:04.9]} 14.
e4 {[%clk 0:01:59.5]} 14... fxe4 {[%clk 0:01:49.1]} 15. fxe4 {[%clk 0:01:50]}
15... e5 {[%clk 0:01:45.6]} 16. Bg5 {[%clk 0:01:46.4]} 16... Qe6 {[%clk
0:01:32.7]} 17. d5 {[%clk 0:01:42.2]} 17... Qg6 {[%clk 0:01:25.8]} 18. Rxf8+
{[%clk 0:01:09.6]} 18... Rxf8 {[%clk 0:01:26.7]} 19. Rf1 {[%clk 0:01:09.1]}
19... Rxf1+ {[%clk 0:01:16]} 20. Kxf1 {[%clk 0:01:10]} 20... h6 {[%clk
0:01:10.5]} 21. Bd8 {[%clk 0:01:09.8]} 21... Nf6 {[%clk 0:00:44.3]} 22. Qe2
{[%clk 0:00:31.4]} 22... Qf7 {[%clk 0:00:35.3]} 23. Bxf6 {[%clk 0:00:30.3]}
23... Qxf6+ {[%clk 0:00:36.2]} 24. Qf3 {[%clk 0:00:30.6]} 24... Qxf3+ {[%clk
0:00:33.7]} 25. gxf3 {[%clk 0:00:31.5]} 25... Kf7 {[%clk 0:00:24.3]} 26. Kf2
{[%clk 0:00:32.4]} 26... Kf6 {[%clk 0:00:22.7]} 27. Kg3 {[%clk 0:00:31.3]} 27...
Bc8 {[%clk 0:00:14.6]} 28. f4 {[%clk 0:00:30.6]} 28... exf4+ {[%clk 0:00:15.5]}
29. Kxf4 {[%clk 0:00:31.1]} 29... g5+ {[%clk 0:00:16.1]} 30. Ke3 {[%clk
0:00:26.8]} 30... Ke5 {[%clk 0:00:17]} 31. Be2 {[%clk 0:00:23.8]} 31... Bd7
{[%clk 0:00:11.2]} 32. Bd1 {[%clk 0:00:19.3]} 32... Be8 {[%clk 0:00:09.6]} 33.
Be2 {[%clk 0:00:17.3]} 33... Bg6 {[%clk 0:00:08.6]} 34. Bd3 {[%clk 0:00:15.7]}
34... h5 {[%clk 0:00:08.7]} 35. a4 {[%clk 0:00:15.4]} 35... a5 {[%clk
0:00:06.1]} 36. bxa5 {[%clk 0:00:13.8]} 36... bxa5 {[%clk 0:00:07]} 37. Be2
{[%clk 0:00:11.4]} 37... h4 {[%clk 0:00:05]} 38. Bf3 {[%clk 0:00:09.1]} 38...
Be8 {[%clk 0:00:03.6]} 39. Be2 {[%clk 0:00:08.3]} 39... Bd7 {[%clk 0:00:03.7]}
40. Bd3 {[%clk 0:00:08.8]} 40... g4 {[%clk 0:00:03.4]} 41. Be2 {[%clk
0:00:08.7]} 41... g3 {[%clk 0:00:02.9]} 42. hxg3 {[%clk 0:00:09.1]} 42... hxg3
{[%clk 0:00:03.8]} 43. Bf3 {[%clk 0:00:10]} 43... Bxa4 {[%clk 0:00:03.3]} 44. c5
{[%clk 0:00:09.2]} 44... dxc5 {[%clk 0:00:03]} 45. Bg2 {[%clk 0:00:10.1]} 45...
Bc2 {[%clk 0:00:02.7]} 46. Kf3 {[%clk 0:00:11]} 46... Bxe4+ {[%clk 0:00:02.5]}
47. Kxg3 {[%clk 0:00:11.3]} 47... Bxg2 {[%clk 0:00:03.4]} 48. Kxg2 {[%clk
0:00:12.2]} 48... Kxd5 {[%clk 0:00:04.1]} 49. Kf2 {[%clk 0:00:13.1]} 49... a4
{[%clk 0:00:04.5]} 50. Ke1 {[%clk 0:00:14]} 50... a3 {[%clk 0:00:04.6]} 51. Kd2
{[%clk 0:00:14.9]} 51... a2 {[%clk 0:00:04.7]} 52. Kc1 {[%clk 0:00:15.8]} 52...
a1=Q+ {[%clk 0:00:04.7]} 53. Kc2 {[%clk 0:00:15.9]} 53... Qd4 {[%clk 0:00:04.9]}
54. Kb3 {[%clk 0:00:16.1]} 54... Qd3+ {[%clk 0:00:04.8]} 55. Kb2 {[%clk
0:00:16.3]} 55... c4 {[%clk 0:00:04.4]} 56. Kc1 {[%clk 0:00:17.2]} 56... Qe2
{[%clk 0:00:03.3]} 57. Kb1 {[%clk 0:00:17.3]} 57... Kd4 {[%clk 0:00:03.5]} 58.
Kc1 {[%clk 0:00:18.2]} 58... Kc3 {[%clk 0:00:04]} 59. Kb1 {[%clk 0:00:19.1]}
59... Qb2# {[%clk 0:00:04.2]} 0-1

[Event "Betsys MČR v online bleskovém šachu 2021"]
[Site "Chess.com"]
[Date "2021.04.17"]
[Round "6"]
[White "Dejfos"]
[Black "misa2009"]
[Result "0-1"]
[WhiteElo "1776"]
[BlackElo "1521"]
[TimeControl "180+1"]
[EndTime "9:58:37 PDT"]
[Termination "Uživatel misa2009 zvítězil matem"]

1. e4 {[%clk 0:02:52.8]} 1... e5 {[%clk 0:02:59.7]} 2. Nf3 {[%clk 0:02:52.3]}
2... Nc6 {[%clk 0:02:58.5]} 3. Bc4 {[%clk 0:02:52.2]} 3... Nf6 {[%clk
0:02:56.7]} 4. d3 {[%clk 0:02:51]} 4... Be7 {[%clk 0:02:56.1]} 5. c3 {[%clk
0:02:50.8]} 5... O-O {[%clk 0:02:55.7]} 6. O-O {[%clk 0:02:50.4]} 6... d6 {[%clk
0:02:55.5]} 7. Bb3 {[%clk 0:02:50.4]} 7... Bg4 {[%clk 0:02:54.9]} 8. Bc2 {[%clk
0:02:49.9]} 8... h6 {[%clk 0:02:50.8]} 9. Nbd2 {[%clk 0:02:50.1]} 9... a6 {[%clk
0:02:48]} 10. h3 {[%clk 0:02:18.5]} 10... Bh5 {[%clk 0:02:47.3]} 11. Re1 {[%clk
0:02:16.6]} 11... Re8 {[%clk 0:02:46.1]} 12. Nf1 {[%clk 0:02:16.5]} 12... Bg6
{[%clk 0:02:42]} 13. Ng3 {[%clk 0:02:16]} 13... Nd7 {[%clk 0:02:39.7]} 14. d4
{[%clk 0:02:13.6]} 14... exd4 {[%clk 0:02:38.5]} 15. cxd4 {[%clk 0:02:13]} 15...
Nb6 {[%clk 0:02:35.6]} 16. b3 {[%clk 0:02:10.3]} 16... Bf6 {[%clk 0:02:30]} 17.
Bb2 {[%clk 0:02:05.4]} 17... Kh8 {[%clk 0:02:19.5]} 18. Rc1 {[%clk 0:02:04.8]}
18... Qe7 {[%clk 0:02:13.3]} 19. a4 {[%clk 0:01:50.8]} 19... Qd7 {[%clk
0:02:03.1]} 20. Nf5 {[%clk 0:01:36.7]} 20... Bxf5 {[%clk 0:02:01.9]} 21. exf5
{[%clk 0:01:35.7]} 21... a5 {[%clk 0:01:55.3]} 22. Bb1 {[%clk 0:01:11.1]} 22...
Rxe1+ {[%clk 0:01:43.8]} 23. Qxe1 {[%clk 0:01:08.1]} 23... Re8 {[%clk
0:01:43.2]} 24. Qd2 {[%clk 0:01:06.9]} 24... Kh7 {[%clk 0:01:28.5]} 25. Re1
{[%clk 0:01:07.8]} 25... Rxe1+ {[%clk 0:01:26.6]} 26. Qxe1 {[%clk 0:01:07.4]}
26... Nd5 {[%clk 0:01:19]} 27. Qd2 {[%clk 0:01:05.3]} 27... Ndb4 {[%clk
0:01:12.3]} 28. d5 {[%clk 0:00:53.9]} 28... Ne5 {[%clk 0:01:05.7]} 29. Nxe5
{[%clk 0:00:53.5]} 29... Bxe5 {[%clk 0:01:02.4]} 30. Bxe5 {[%clk 0:00:52.7]}
30... dxe5 {[%clk 0:01:01.6]} 31. f6+ {[%clk 0:00:52.7]} 31... Kg8 {[%clk
0:01:00.1]} 32. fxg7 {[%clk 0:00:51.3]} 32... Kxg7 {[%clk 0:00:56.5]} 33. Be4
{[%clk 0:00:39.9]} 33... f5 {[%clk 0:00:56]} 34. Bb1 {[%clk 0:00:35.4]} 34...
Qxd5 {[%clk 0:00:55]} 35. Qxd5 {[%clk 0:00:30.9]} 35... Nxd5 {[%clk 0:00:54.2]}
36. Bxf5 {[%clk 0:00:31.5]} 36... Kf6 {[%clk 0:00:42.5]} 37. Bc8 {[%clk
0:00:31.4]} 37... b6 {[%clk 0:00:41.9]} 38. Kf1 {[%clk 0:00:32]} 38... Ke7
{[%clk 0:00:38.8]} 39. Ke2 {[%clk 0:00:29.9]} 39... Kd6 {[%clk 0:00:38.4]} 40.
Bf5 {[%clk 0:00:27.2]} 40... Kc5 {[%clk 0:00:37]} 41. Kd2 {[%clk 0:00:24.2]}
41... Kb4 {[%clk 0:00:36.1]} 42. Be6 {[%clk 0:00:20.8]} 42... Nf4 {[%clk
0:00:32.2]} 43. Bc4 {[%clk 0:00:18.6]} 43... Nxg2 {[%clk 0:00:30.6]} 44. Kd3
{[%clk 0:00:16.7]} 44... Nf4+ {[%clk 0:00:30.3]} 45. Ke4 {[%clk 0:00:16.5]}
45... Nxh3 {[%clk 0:00:29.6]} 46. Kxe5 {[%clk 0:00:17]} 46... Nxf2 {[%clk
0:00:29.1]} 47. Kf4 {[%clk 0:00:15.1]} 47... Nd1 {[%clk 0:00:26.8]} 48. Ke4
{[%clk 0:00:14.8]} 48... Nc3+ {[%clk 0:00:26.2]} 49. Kf5 {[%clk 0:00:14.5]}
49... Nxa4 {[%clk 0:00:23.5]} 50. Be6 {[%clk 0:00:11.3]} 50... Nc5 {[%clk
0:00:20.6]} 51. Ke5 {[%clk 0:00:11.3]} 51... Nxb3 {[%clk 0:00:20.5]} 52. Kf4
{[%clk 0:00:12.2]} 52... a4 {[%clk 0:00:20.1]} 53. Ke3 {[%clk 0:00:13.1]} 53...
a3 {[%clk 0:00:20.2]} 54. Ke2 {[%clk 0:00:14]} 54... Kc3 {[%clk 0:00:20.2]} 55.
Kd1 {[%clk 0:00:14.9]} 55... Kb2 {[%clk 0:00:20.2]} 56. Bxb3 {[%clk 0:00:15.8]}
56... Kxb3 {[%clk 0:00:19.2]} 57. Kd2 {[%clk 0:00:15.5]} 57... c5 {[%clk
0:00:20.1]} 58. Kd3 {[%clk 0:00:16.4]} 58... c4+ {[%clk 0:00:20.4]} 59. Ke4
{[%clk 0:00:17.1]} 59... c3 {[%clk 0:00:20.6]} 60. Ke5 {[%clk 0:00:18]} 60... c2
{[%clk 0:00:20.8]} 61. Ke6 {[%clk 0:00:18.9]} 61... c1=Q {[%clk 0:00:20.6]} 62.
Kf6 {[%clk 0:00:19.8]} 62... a2 {[%clk 0:00:20.2]} 63. Kg6 {[%clk 0:00:20.7]}
63... a1=Q {[%clk 0:00:20]} 64. Kf7 {[%clk 0:00:20.4]} 64... Qe3 {[%clk
0:00:19.4]} 65. Kf8 {[%clk 0:00:20.5]} 65... Qf1+ {[%clk 0:00:19.1]} 66. Kg7
{[%clk 0:00:21.4]} 66... Qg3+ {[%clk 0:00:18.7]} 67. Kxh6 {[%clk 0:00:19.5]}
67... Qh1# {[%clk 0:00:18]} 0-1

[Event "Betsys MČR v online bleskovém šachu 2021"]
[Site "Chess.com"]
[Date "2021.04.17"]
[Round "6"]
[White "Stalri"]
[Black "Krvelacny_krecek"]
[Result "0-1"]
[WhiteElo "2189"]
[BlackElo "2393"]
[TimeControl "180+1"]
[EndTime "9:58:38 PDT"]
[Termination "Uživatel Krvelacny_krecek zvítězil po vzdání soupeře"]

1. d4 {[%clk 0:03:00.9]} 1... d5 {[%clk 0:02:59.5]} 2. c4 {[%clk 0:03:01.1]}
2... c6 {[%clk 0:02:59.4]} 3. Nc3 {[%clk 0:03:01.2]} 3... Nf6 {[%clk 0:02:59.5]}
4. cxd5 {[%clk 0:03:01.5]} 4... cxd5 {[%clk 0:02:59.1]} 5. f3 {[%clk 0:03:01.8]}
5... Nc6 {[%clk 0:02:53.9]} 6. e4 {[%clk 0:03:01.8]} 6... e6 {[%clk 0:02:49.4]}
7. e5 {[%clk 0:03:01.8]} 7... Nd7 {[%clk 0:02:48.4]} 8. f4 {[%clk 0:03:02.1]}
8... Nb6 {[%clk 0:02:43.6]} 9. Nf3 {[%clk 0:03:01.7]} 9... Be7 {[%clk
0:02:41.6]} 10. Be2 {[%clk 0:03:01.7]} 10... Bd7 {[%clk 0:02:39.3]} 11. O-O
{[%clk 0:03:01.9]} 11... Rc8 {[%clk 0:02:33.3]} 12. Kh1 {[%clk 0:03:01.1]} 12...
Na5 {[%clk 0:02:24.2]} 13. Qe1 {[%clk 0:02:29.3]} 13... Nac4 {[%clk 0:02:21.3]}
14. b3 {[%clk 0:02:25.5]} 14... Na3 {[%clk 0:02:14.9]} 15. Bxa3 {[%clk
0:02:04.4]} 15... Bxa3 {[%clk 0:02:13.2]} 16. Nb5 {[%clk 0:02:05]} 16... Bxb5
{[%clk 0:02:00.1]} 17. Bxb5+ {[%clk 0:02:04.2]} 17... Kf8 {[%clk 0:01:51.3]} 18.
Qa5 {[%clk 0:01:46.7]} 18... Be7 {[%clk 0:00:57.3]} 19. Qxa7 {[%clk 0:01:45.2]}
19... Qc7 {[%clk 0:00:55.7]} 20. Qa5 {[%clk 0:01:32.8]} 20... Ra8 {[%clk
0:00:51.8]} 21. Rac1 {[%clk 0:01:17.1]} 21... Qd8 {[%clk 0:00:45.5]} 22. Qd2
{[%clk 0:01:12.6]} 22... g6 {[%clk 0:00:41.1]} 23. f5 {[%clk 0:01:08.9]} 23...
exf5 {[%clk 0:00:38]} 24. Qh6+ {[%clk 0:01:03.6]} 24... Kg8 {[%clk 0:00:38]} 25.
a4 {[%clk 0:00:49.2]} 25... Bf8 {[%clk 0:00:37.4]} 26. Qd2 {[%clk 0:00:43.3]}
26... Kg7 {[%clk 0:00:36.6]} 27. h4 {[%clk 0:00:32.2]} 27... h5 {[%clk
0:00:33.8]} 28. e6 {[%clk 0:00:24.2]} 28... f6 {[%clk 0:00:29.5]} 29. a5 {[%clk
0:00:19.2]} 29... Nc8 {[%clk 0:00:25.8]} 30. Bd7 {[%clk 0:00:16.1]} 30... Bd6
{[%clk 0:00:22.3]} 31. b4 {[%clk 0:00:11.6]} 31... Ne7 {[%clk 0:00:21.4]} 32.
Rc2 {[%clk 0:00:08.5]} 32... Qb8 {[%clk 0:00:20.8]} 33. Rfc1 {[%clk 0:00:07.9]}
33... Qa7 {[%clk 0:00:20.9]} 34. Qe2 {[%clk 0:00:05.4]} 34... Bf4 {[%clk
0:00:17]} 35. Rb1 {[%clk 0:00:04.7]} 35... Rhd8 {[%clk 0:00:15.9]} 36. Qb5
{[%clk 0:00:04.8]} 36... Bd6 {[%clk 0:00:13.9]} 37. Rbc1 {[%clk 0:00:04.3]}
37... Qa6 {[%clk 0:00:13.1]} 38. Qxa6 {[%clk 0:00:04.1]} 38... bxa6 {[%clk
0:00:13.1]} 39. Ne1 {[%clk 0:00:04.3]} 39... Rab8 {[%clk 0:00:13.4]} 40. Nd3
{[%clk 0:00:04]} 40... g5 {[%clk 0:00:12.5]} 41. Nc5 {[%clk 0:00:03.7]} 41...
gxh4 {[%clk 0:00:11.2]} 42. Nxa6 {[%clk 0:00:03.8]} 42... Ra8 {[%clk 0:00:09.9]}
43. b5 {[%clk 0:00:04.3]} 43... f4 {[%clk 0:00:07.7]} 44. Kg1 {[%clk 0:00:04]}
44... Nf5 {[%clk 0:00:07.6]} 45. Ra1 {[%clk 0:00:03.8]} 45... Nxd4 {[%clk
0:00:07.6]} 46. Rc6 {[%clk 0:00:03.2]} 46... Nxc6 {[%clk 0:00:07.2]} 47. Bxc6
{[%clk 0:00:04.1]} 47... f5 {[%clk 0:00:06.3]} 48. Bxa8 {[%clk 0:00:03.7]} 48...
Rxa8 {[%clk 0:00:06.3]} 49. Kf2 {[%clk 0:00:02.6]} 49... Be5 {[%clk 0:00:06.5]}
50. Kf3 {[%clk 0:00:01.6]} 50... Bxa1 {[%clk 0:00:06.1]} 51. Kxf4 {[%clk
0:00:01.7]} 51... Kf6 {[%clk 0:00:05.6]} 52. b6 {[%clk 0:00:01.7]} 52... Be5+
{[%clk 0:00:05.7]} 53. Kf3 {[%clk 0:00:01.3]} 53... Rxa6 {[%clk 0:00:06]} 54. b7
{[%clk 0:00:01.9]} 54... Rxa5 {[%clk 0:00:05.1]} 55. Kf2 {[%clk 0:00:01.5]}
55... Ra3 {[%clk 0:00:05.2]} 56. Ke2 {[%clk 0:00:01.5]} 56... Kxe6 {[%clk
0:00:05.6]} 57. Kf2 {[%clk 0:00:02.1]} 57... Rb3 {[%clk 0:00:05.9]} 58. Ke2
{[%clk 0:00:02.9]} 58... Rxb7 {[%clk 0:00:06]} 59. Kf2 {[%clk 0:00:03.6]} 59...
Rb3 {[%clk 0:00:06]} 0-1

[Event "Betsys MČR v online bleskovém šachu 2021"]
[Site "Chess.com"]
[Date "2021.04.17"]
[Round "6"]
[White "elftom"]
[Black "reflexia64"]
[Result "1/2-1/2"]
[WhiteElo "1962"]
[BlackElo "2252"]
[TimeControl "180+1"]
[EndTime "9:58:40 PDT"]
[Termination "Remíza – nedostatek materiálu"]

1. c4 {[%clk 0:02:59.6]} 1... e5 {[%clk 0:02:55.9]} 2. Nc3 {[%clk 0:02:59.1]}
2... d6 {[%clk 0:02:55.3]} 3. g3 {[%clk 0:02:58.3]} 3... f5 {[%clk 0:02:54.6]}
4. d3 {[%clk 0:02:56.3]} 4... Nf6 {[%clk 0:02:53.8]} 5. Bg2 {[%clk 0:02:56.3]}
5... g6 {[%clk 0:02:53.2]} 6. e4 {[%clk 0:02:56]} 6... Bg7 {[%clk 0:02:52.7]} 7.
Nge2 {[%clk 0:02:55.6]} 7... O-O {[%clk 0:02:48.9]} 8. Bg5 {[%clk 0:02:54.8]}
8... h6 {[%clk 0:02:46.7]} 9. Be3 {[%clk 0:02:53.3]} 9... Ng4 {[%clk 0:02:42.5]}
10. Qd2 {[%clk 0:02:09.9]} 10... Nxe3 {[%clk 0:02:38]} 11. Qxe3 {[%clk
0:02:09.6]} 11... Nc6 {[%clk 0:02:35.6]} 12. O-O {[%clk 0:02:09]} 12... Nd4
{[%clk 0:02:26.7]} 13. Qd2 {[%clk 0:01:55.9]} 13... c6 {[%clk 0:02:20.1]} 14.
Nxd4 {[%clk 0:01:55.2]} 14... exd4 {[%clk 0:02:19.4]} 15. Ne2 {[%clk 0:01:54.9]}
15... g5 {[%clk 0:02:12]} 16. f4 {[%clk 0:01:54.2]} 16... fxe4 {[%clk
0:02:04.9]} 17. Bxe4 {[%clk 0:01:53.5]} 17... Bh3 {[%clk 0:02:03.3]} 18. Bg2
{[%clk 0:01:52.9]} 18... Bxg2 {[%clk 0:02:01.7]} 19. Kxg2 {[%clk 0:01:52.8]}
19... Qe7 {[%clk 0:02:01.8]} 20. Rae1 {[%clk 0:01:52.1]} 20... Qe3 {[%clk
0:01:40.6]} 21. Qxe3 {[%clk 0:01:31.6]} 21... dxe3 {[%clk 0:01:39.9]} 22. fxg5
{[%clk 0:01:24.9]} 22... hxg5 {[%clk 0:01:36.6]} 23. b3 {[%clk 0:01:22.6]} 23...
d5 {[%clk 0:01:33.5]} 24. Rxf8+ {[%clk 0:01:12.8]} 24... Rxf8 {[%clk 0:01:29.6]}
25. Rf1 {[%clk 0:01:13.3]} 25... Rxf1 {[%clk 0:01:23.9]} 26. Kxf1 {[%clk
0:01:13.1]} 26... Kf7 {[%clk 0:01:23.8]} 27. Kg2 {[%clk 0:01:13]} 27... Ke6
{[%clk 0:01:23.6]} 28. Kf3 {[%clk 0:01:13]} 28... d4 {[%clk 0:01:21.4]} 29. Ke4
{[%clk 0:01:07.2]} 29... c5 {[%clk 0:01:20.6]} 30. h4 {[%clk 0:01:06.2]} 30...
gxh4 {[%clk 0:01:14.8]} 31. gxh4 {[%clk 0:01:05]} 31... Bf6 {[%clk 0:01:01.3]}
32. h5 {[%clk 0:01:04.3]} 32... Kf7 {[%clk 0:01:00.4]} 33. b4 {[%clk 0:01:00.7]}
33... b6 {[%clk 0:00:59.8]} 34. bxc5 {[%clk 0:01:00.2]} 34... bxc5 {[%clk
0:00:59.6]} 35. Kf5 {[%clk 0:00:58.7]} 35... Kg7 {[%clk 0:00:57.2]} 36. h6+
{[%clk 0:00:54.8]} 36... Kf7 {[%clk 0:00:56.1]} 37. h7 {[%clk 0:00:44.3]} 37...
Bh8 {[%clk 0:00:55.4]} 38. Nf4 {[%clk 0:00:39.6]} 38... Kg7 {[%clk 0:00:52.6]}
39. Ke5 {[%clk 0:00:39.1]} 39... Kxh7+ {[%clk 0:00:51.5]} 40. Kd5 {[%clk
0:00:39.2]} 40... Kh6 {[%clk 0:00:49.8]} 41. Kxc5 {[%clk 0:00:38.9]} 41... Kg5
{[%clk 0:00:49.5]} 42. Ne2 {[%clk 0:00:38.9]} 42... Kg4 {[%clk 0:00:48.9]} 43.
Kd6 {[%clk 0:00:38.9]} 43... Kf3 {[%clk 0:00:48.6]} 44. c5 {[%clk 0:00:38.9]}
44... Kxe2 {[%clk 0:00:34.1]} 45. c6 {[%clk 0:00:37.5]} 45... Kxd3 {[%clk
0:00:29.8]} 46. c7 {[%clk 0:00:37.2]} 46... e2 {[%clk 0:00:29.2]} 47. c8=Q
{[%clk 0:00:37.5]} 47... Be5+ {[%clk 0:00:28]} 48. Kxe5 {[%clk 0:00:34]} 48...
e1=Q+ {[%clk 0:00:27.2]} 49. Kd5 {[%clk 0:00:33.8]} 49... Qa5+ {[%clk 0:00:25]}
50. Ke6 {[%clk 0:00:32.9]} 50... Qb6+ {[%clk 0:00:24.4]} 51. Ke5 {[%clk
0:00:30.3]} 51... Qa5+ {[%clk 0:00:22.7]} 52. Kf4 {[%clk 0:00:25.6]} 52... Kd2
{[%clk 0:00:22.1]} 53. Ke4 {[%clk 0:00:24]} 53... d3 {[%clk 0:00:19.8]} 54. Qc4
{[%clk 0:00:23.3]} 54... Qb6 {[%clk 0:00:18.7]} 55. Qxd3+ {[%clk 0:00:22.1]}
55... Kc1 {[%clk 0:00:17.2]} 56. a3 {[%clk 0:00:17.4]} 56... Kb2 {[%clk
0:00:16.8]} 57. Kd5 {[%clk 0:00:13.2]} 57... Qd8+ {[%clk 0:00:15.7]} 58. Kc4
{[%clk 0:00:12.8]} 58... Qc7+ {[%clk 0:00:14.9]} 59. Kb4 {[%clk 0:00:12.1]}
59... Qb6+ {[%clk 0:00:14.2]} 60. Ka4 {[%clk 0:00:11.8]} 60... Qc6+ {[%clk
0:00:13.8]} 61. Qb5+ {[%clk 0:00:11]} 61... Qxb5+ {[%clk 0:00:12.7]} 62. Kxb5
{[%clk 0:00:11.5]} 62... Kxa3 {[%clk 0:00:13.1]} 63. Ka6 {[%clk 0:00:12.1]}
63... Kb3 {[%clk 0:00:12.6]} 64. Kxa7 {[%clk 0:00:13]} 1/2-1/2